bitfinex-derivatives/quotes_BTCF0:USTF0_20250308
["timestamp","ask_amount","ask_price","bid_price","bid_amount"]
[1741405007234,0.2249305,85765.0,85763.0,0.1096]
[1741405007542,0.1083,85765.0,85763.0,0.1096]
[1741405007841,0.1083,85765.0,85762.0,0.00012989]
[1741405007842,0.116633,85763.0,85762.0,0.00012989]
[1741405008139,0.477433,85763.0,85762.0,0.00012989]
[1741405008539,0.1166567,85746.0,85740.0,0.25756085]
[1741405008739,0.1094,85745.0,85743.0,0.0579735]
[1741405008939,0.1094,85745.0,85740.0,0.25756085]
[1741405009237,0.1094,85745.0,85741.0,0.1166628]
[1741405009438,0.1094,85745.0,85742.0,0.00011085]
[1741405010142,0.1166602,85743.0,85742.0,0.00011085]
[1741405010443,0.1094,85745.0,85743.0,0.1166592]
[1741405010648,0.1094,85745.0,85744.0,0.1092]
[1741405011436,0.1094,85745.0,85742.0,0.05825332]
[1741405011744,0.1094,85745.0,85743.0,0.1102]
[1741405013337,0.1094,85745.0,85743.0,0.2268596]
[1741405013532,0.1094,85745.0,85742.0,0.05825332]
[1741405014642,0.1094,85745.0,85738.0,0.102]
[1741405014836,0.1094,85745.0,85738.0,0.15924321]
[1741405014837,0.1166609,85743.0,85738.0,0.15924321]
[1741405015038,0.1081,85742.0,85738.0,0.15924321]
[1741405015641,0.1081,85742.0,85739.0,0.00013558]
[1741405017140,0.1081,85742.0,85741.0,0.1166629]
[1741405017548,0.1081,85742.0,85741.0,0.05858077]
[1741405018952,0.00017488,85752.0,85751.0,0.1166493]
[1741405019848,0.00017488,85752.0,85751.0,0.3244493]
[1741405020441,0.1113,85775.0,85751.0,0.3244493]
[1741405020637,0.1113,85775.0,85762.0,0.05855217]
[1741405020846,0.1113,85775.0,85763.0,0.1037]
[1741405021554,0.2279167,85775.0,85763.0,0.2063]
[1741405022037,0.1022,85774.0,85763.0,0.2063]
[1741405022345,0.2188183,85774.0,85763.0,0.2063]
[1741405022742,0.1022,85774.0,85763.0,0.2063]
[1741405022939,0.1022,85774.0,85766.0,0.1166281]
[1741405023142,0.1022,85774.0,85767.0,0.2187]
[1741405023342,0.1022,85774.0,85767.0,0.26783424]
[1741405023544,0.1022,85774.0,85773.0,0.05853727]
[1741405023744,0.00017488,85778.0,85777.0,0.116614]
[1741405023943,0.00017488,85778.0,85777.0,0.477414]
[1741405024641,0.3608,85810.0,85777.0,0.3608]
[1741405024955,0.2152,85789.0,85788.0,0.14089735]
[1741405025151,0.2152,85789.0,85788.0,0.1085]
[1741405026247,0.2152,85789.0,85788.0,0.225099]
[1741405026450,0.2152,85789.0,85788.0,0.330099]
[1741405026656,0.2152,85789.0,85788.0,0.27201687]
[1741405027958,0.0582784,85820.0,85796.0,0.1165881]
[1741405028254,0.1111,85818.0,85797.0,0.21401938]
[1741405028558,0.2183,85818.0,85808.0,0.14089735]
[1741405028955,0.2183,85818.0,85808.0,0.25746905]
[1741405029353,0.2183,85818.0,85808.0,0.30727885]
[1741405029553,0.2183,85818.0,85808.0,0.19070715]
[1741405029753,0.2183,85818.0,85808.0,0.13262502]
[1741405030051,0.2183,85818.0,85809.0,0.1085]
[1741405030251,0.3348583,85818.0,85809.0,0.1085]
[1741405030754,0.2183,85818.0,85809.0,0.1085]
[1741405032057,0.2183,85818.0,85817.0,0.1165596]
[1741405032454,0.2183,85818.0,85816.0,0.3183]
[1741405032652,0.2183,85818.0,85816.0,0.1083]
[1741405032853,0.2183,85818.0,85810.0,0.3608]
[1741405033259,0.334859,85818.0,85810.0,0.3608]
[1741405033864,0.2183,85818.0,85810.0,0.3608]
[1741405035064,0.2183,85818.0,85810.0,0.4773682]
[1741405035265,0.2183,85818.0,85812.0,0.1165662]
[1741405035565,0.2183,85818.0,85813.0,0.1165646]
[1741405035762,0.2183,85818.0,85814.0,0.05848147]
[1741405036964,0.2183,85818.0,85815.0,0.1113]
[1741405038552,0.2183,85818.0,85812.0,0.3608]
[1741405038759,0.2183,85818.0,85812.0,0.30271787]
[1741405040557,0.2183,85818.0,85817.0,0.1165596]
[1741405041082,0.2183,85818.0,85816.0,0.1065]
[1741405041366,0.2183,85818.0,85817.0,0.1165596]
[1741405041558,0.2183,85818.0,85817.0,0.2273596]
[1741405041860,0.2183,85818.0,85817.0,0.16927747]
[1741405042066,0.00017488,85822.0,85817.0,0.1108]
[1741405042367,0.00017488,85822.0,85821.0,0.1165542]
[1741405042764,0.00017488,85822.0,85821.0,0.3273542]
[1741405044259,0.00017488,85822.0,85821.0,0.2108]
[1741405044568,0.00017488,85822.0,85821.0,0.1065]
[1741405044965,0.00017488,85822.0,85819.0,0.3608]
[1741405045467,0.00017488,85822.0,85820.0,0.1165544]
[1741405045865,0.00017488,85822.0,85819.0,0.4628]
[1741405046255,0.00017488,85822.0,85819.0,0.3608]
[1741405046567,0.3608,85820.0,85812.0,0.38135787]
[1741405046765,0.116565,85813.0,85812.0,0.30271787]
[1741405046971,0.1165631,85815.0,85812.0,0.30271787]
[1741405047170,0.2053,85814.0,85812.0,0.30271787]
[1741405047665,0.2053,85814.0,85812.0,0.41928377]
[1741405047864,0.2053,85814.0,85808.0,0.0498098]
[1741405048172,0.2053,85814.0,85810.0,0.73376]
[1741405048364,0.1165656,85813.0,85810.0,0.73376]
[1741405048560,0.1165678,85811.0,85810.0,0.73376]
[1741405048866,0.4773678,85811.0,85810.0,0.73376]
[1741405049064,0.1165759,85805.0,85804.0,0.00017488]
[1741405050070,0.1165759,85805.0,85797.0,0.00186753]
[1741405050373,0.1166044,85784.0,85780.0,0.14089735]
[1741405050670,0.11662,85773.0,85770.0,0.14264616]
[1741405050869,0.1166214,85772.0,85770.0,0.00174881]
[1741405051169,0.1166214,85772.0,85770.0,0.04773579]
[1741405051170,0.1166225,85771.0,85770.0,0.04773579]
[1741405051370,0.1053,85772.0,85771.0,0.1166221]
[1741405051965,0.1053,85772.0,85770.0,0.0001138]
[1741405053374,0.1053,85772.0,85770.0,0.04827631]
[1741405053577,0.1023,85771.0,85770.0,0.04827631]
[1741405053967,0.1023,85771.0,85769.0,0.09979418]
[1741405054177,0.1023,85771.0,85770.0,0.1081]
[1741405054970,0.1023,85771.0,85770.0,0.10818924]
[1741405056781,0.1023,85771.0,85770.0,0.22481274]
[1741405057079,0.1023,85771.0,85770.0,0.16673061]
[1741405057881,0.1023,85771.0,85770.0,0.21481971]
[1741405059967,0.1023,85771.0,85770.0,0.1647126]
[1741405060180,0.1023,85771.0,85770.0,0.15673758]
[1741405060481,0.0643,85797.0,85770.0,0.0480891]
[1741405060681,0.0643,85797.0,85795.0,0.1165891]
[1741405061183,0.0643,85797.0,85796.0,0.11668876]
[1741405061381,0.0643,85797.0,85796.0,0.00010066]
[1741405061581,0.0643,85797.0,85796.0,0.11668876]
[1741405062384,0.0643,85797.0,85796.0,0.16644676]
[1741405063279,0.0643,85797.0,85796.0,0.10836463]
[1741405064181,0.0643,85797.0,85796.0,0.10847294]
[1741405064383,0.1042,85804.0,85799.0,0.1165837]
[1741405065081,0.1042,85804.0,85796.0,0.16645381]
[1741405065287,0.1042,85804.0,85797.0,0.1047]
[1741405066179,0.1042,85804.0,85797.0,0.04661787]
[1741405067578,0.1042,85804.0,85798.0,0.1165847]
[1741405067888,0.1042,85804.0,85797.0,0.04661787]
[1741405068088,0.1042,85804.0,85797.0,0.16320377]
[1741405068291,0.1042,85804.0,85797.0,0.04661787]
[1741405069178,0.1042,85804.0,85796.0,0.16645311]
[1741405069179,0.1042,85804.0,85796.0,0.15498885]
[1741405069389,0.1042,85804.0,85796.0,0.03840205]
[1741405071682,0.29527151,85802.0,85796.0,0.03840205]
[1741405071882,0.1065,85801.0,85796.0,0.03840205]
[1741405072288,0.1065,85801.0,85795.0,0.09690932]
[1741405072786,0.1065,85801.0,85795.0,0.14635418]
[1741405073189,0.1065,85801.0,85796.0,0.00012402]
[1741405073590,0.1065,85800.0,85796.0,0.00012402]
[1741405073897,0.1065,85800.0,85799.0,0.1165841]
[1741405074491,0.1065,85800.0,85799.0,0.3337841]
[1741405075090,0.0409764,85800.0,85799.0,0.3337841]
[1741405075289,0.0409764,85800.0,85799.0,0.27570197]
[1741405075798,0.00017488,85805.0,85804.0,0.1165773]
[1741405076697,0.00017488,85805.0,85804.0,0.3286773]
[1741405077690,0.00017488,85805.0,85804.0,0.2121]
[1741405077996,0.00017488,85805.0,85804.0,0.107]
[1741405078199,0.00017488,85805.0,85798.0,0.02055787]
[1741405078391,0.00017488,85805.0,85796.0,0.22591112]
[1741405078702,0.00017488,85805.0,85797.0,0.1165864]
[1741405078997,0.00017488,85805.0,85797.0,0.2331728]
[1741405079589,0.00017488,85805.0,85798.0,0.1165853]
[1741405079789,0.00017488,85805.0,85796.0,0.10932402]
[1741405079986,0.00017488,85805.0,85804.0,0.1165773]
[1741405081099,0.00017488,85805.0,85804.0,0.2167]
[1741405081292,0.00017488,85805.0,85804.0,0.15861787]
[1741405081689,0.00017488,85805.0,85804.0,0.27519517]
[1741405082398,0.1048,85817.0,85804.0,0.27519517]
[1741405082596,0.1048,85817.0,85806.0,0.116574]
[1741405083002,0.0643,85818.0,85817.0,0.1165596]
[1741405083303,0.1021,85830.0,85824.0,0.1165491]
[1741405083500,0.1021,85830.0,85820.0,0.14089735]
[1741405083800,0.1021,85830.0,85825.0,0.1165485]
[1741405084001,0.1021,85830.0,85820.0,0.14089735]
[1741405084201,0.1021,85830.0,85820.0,0.25745225]
[1741405084399,0.1021,85830.0,85820.0,0.19937012]
[1741405084802,0.1021,85830.0,85821.0,0.1165537]
[1741405084994,0.1081,85829.0,85820.0,0.19937012]
[1741405087406,0.1081,85829.0,85821.0,0.1165529]
[1741405087607,0.1015,85828.0,85821.0,0.1165529]
[1741405087802,0.1015,85828.0,85822.0,0.1068]
[1741405088105,0.1114,85827.0,85826.0,0.1165474]
[1741405088695,0.1114,85827.0,85826.0,0.3248474]
[1741405089207,0.1114,85827.0,85826.0,0.32495925]
[1741405089402,9.316e-05,85838.0,85835.0,0.1165352]
[1741405090007,9.316e-05,85838.0,85835.0,0.3331352]
[1741405090403,9.316e-05,85838.0,85835.0,0.27505307]
[1741405090798,9.316e-05,85838.0,85835.0,0.2166]
[1741405091004,9.316e-05,85838.0,85833.0,0.1123]
[1741405091203,9.316e-05,85838.0,85831.0,0.4706]
[1741405091405,0.1165353,85835.0,85827.0,0.1098]
[1741405091702,0.2244353,85835.0,85827.0,0.1098]
[1741405092513,0.05835876,85838.0,85833.0,0.1165379]
[1741405092514,0.1046,85834.0,85833.0,0.1165379]
[1741405093108,0.1046,85834.0,85833.0,0.3340379]
[1741405093513,0.1046,85834.0,85833.0,0.2175]
[1741405093809,0.1046,85834.0,85829.0,0.3608]
[1741405094016,0.1165393,85832.0,85829.0,0.3608]
[1741405094212,0.2141,85831.0,85829.0,0.3608]
[1741405094417,0.116542,85830.0,85829.0,0.3608]
[1741405094919,0.2141,85830.0,85827.0,0.1092]
[1741405095211,0.13404115,85830.0,85829.0,0.1165433]
[1741405095807,0.13404115,85830.0,85829.0,0.2226433]
[1741405096413,0.13404115,85830.0,85829.0,0.16456117]
[1741405097308,0.1091,85835.0,85829.0,0.1061]
[1741405097611,0.1091,85835.0,85834.0,0.3608]
[1741405097904,0.1165365,85834.0,85833.0,0.3608]
[1741405098112,0.2251365,85834.0,85833.0,0.3608]
[1741405098307,0.1086,85834.0,85833.0,0.3608]
[1741405098508,0.1091,85835.0,85833.0,0.3608]
[1741405098709,0.1091,85835.0,85834.0,0.1165365]
[1741405099018,0.1091,85835.0,85834.0,0.2109]
[1741405099413,0.00017478,85836.0,85835.0,0.1165352]
[1741405099603,0.00017478,85836.0,85835.0,0.37965307]
[1741405099803,0.00017478,85836.0,85835.0,0.3212]
[1741405102016,0.00017478,85836.0,85835.0,0.4377352]
[1741405102216,0.10567478,85836.0,85835.0,0.4377352]
[1741405102610,0.10567478,85836.0,85835.0,0.37965307]
[1741405105613,0.10567478,85836.0,85835.0,0.32157094]
[1741405107418,0.3608,85864.0,85835.0,0.39843574]
[1741405107619,0.1069,85854.0,85852.0,0.1165113]
[1741405107820,0.1069,85854.0,85853.0,0.1103]
[1741405108723,0.1069,85854.0,85851.0,0.2260133]
[1741405108926,0.1041,85853.0,85851.0,0.2260133]
[1741405109421,0.104,85852.0,85851.0,0.16729924]
[1741405111723,0.104,85852.0,85851.0,0.10921711]
[1741405112117,0.104,85852.0,85851.0,0.58181711]
[1741405112325,0.104,85852.0,85851.0,0.59051755]
[1741405113019,0.104,85852.0,85851.0,0.70703095]
[1741405113822,0.1041,85853.0,85851.0,0.70703095]
[1741405114024,0.1041,85853.0,85852.0,0.11664974]
[1741405114425,0.1041,85853.0,85852.0,0.22634974]
[1741405114627,0.1041,85853.0,85852.0,0.16826761]
[1741405114828,0.1041,85853.0,85852.0,0.27216761]
[1741405115229,0.1041,85853.0,85852.0,0.2136]
[1741405115623,0.1041,85853.0,85852.0,0.21374868]
[1741405115931,0.1041,85853.0,85852.0,0.33026078]
[1741405116525,0.1041,85853.0,85852.0,0.10404868]
[1741405117723,0.1041,85853.0,85852.0,0.04596655]
[1741405118131,0.1041,85853.0,85852.0,0.00014868]
[1741405118330,0.2206107,85853.0,85852.0,0.00014868]
[1741405118820,0.1041,85853.0,85852.0,0.00014868]
[1741405119031,0.2206107,85853.0,85852.0,0.00014868]
[1741405120033,0.1041,85853.0,85852.0,0.00014868]
[1741405120232,0.2206107,85853.0,85852.0,0.00014868]
[1741405120734,0.1041,85853.0,85847.0,0.1165186]
[1741405121036,0.1123,85852.0,85846.0,0.1165202]
[1741405121227,0.1123,85852.0,85845.0,0.10527478]
[1741405121427,0.1029,85851.0,85845.0,0.10527478]
[1741405121938,0.1123,85850.0,85846.0,9.831e-05]
[1741405122234,0.1123,85850.0,85847.0,0.2330363]
[1741405122422,0.1029,85849.0,85848.0,0.3187]
[1741405123627,0.1029,85849.0,85848.0,0.4352175]
[1741405123825,0.1029,85849.0,85848.0,0.27473537]
[1741405124537,0.1029,85849.0,85848.0,0.38393537]
[1741405126728,0.1029,85849.0,85848.0,0.20933574]
[1741405128941,0.03741279,85849.0,85848.0,0.20933574]
[1741405129130,0.03741279,85849.0,85848.0,0.22332007]
[1741405129840,0.03741279,85849.0,85848.0,0.16523794]
[1741405130025,0.00418179,85850.0,85848.0,0.16523794]
[1741405130232,0.1165089,85855.0,85848.0,0.27443794]
[1741405131435,0.0582502,85861.0,85848.0,0.33269654]
[1741405131639,0.1673488,85863.0,85850.0,0.1165136]
[1741405131831,0.116502,85860.0,85851.0,0.2193]
[1741405132027,0.1091,85863.0,85851.0,0.2193]
[1741405132230,0.116503,85859.0,85851.0,0.2193]
[1741405132941,0.00017478,85862.0,85858.0,0.1165032]
[1741405133135,0.00017478,85862.0,85852.0,0.1934]
[1741405133136,0.00017478,85862.0,85859.0,0.11]
[1741405133439,0.11667408,85862.0,85853.0,0.1165102]
[1741405133636,0.11667408,85862.0,85853.0,0.2265102]
[1741405133842,0.1071,85861.0,85853.0,0.2265102]
[1741405134045,0.1071,85861.0,85851.0,0.3608]
[1741405134239,0.1058,85860.0,85851.0,0.3608]
[1741405134543,0.2223017,85860.0,85851.0,0.3608]
[1741405134746,0.2122,85859.0,85854.0,0.0582541]
[1741405135045,0.2122,85859.0,85856.0,0.116506]
[1741405135345,0.1058,85858.0,85857.0,0.1079]
[1741405135844,0.2151,85858.0,85857.0,0.04981787]
[1741405136144,0.2151,85858.0,85857.0,0.1672022]
[1741405138447,0.13506075,85858.0,85857.0,0.2837075]
[1741405138652,0.13506075,85858.0,85857.0,0.3912075]
[1741405138950,0.06957733,85858.0,85857.0,0.33312537]
[1741405139248,0.06957733,85858.0,85857.0,0.43922537]
[1741405139641,0.00017478,85862.0,85857.0,0.68352007]
[1741405139845,0.1068,85877.0,85871.0,0.1164856]
[1741405140147,0.1068,85877.0,85872.0,0.1061]
[1741405141043,0.1164836,85873.0,85872.0,0.1061]
[1741405141255,0.116481,85875.0,85872.0,0.16566849]
[1741405141452,0.1068,85877.0,85872.0,0.16566849]
[1741405141648,0.1164806,85876.0,85872.0,0.16566849]
[1741405141844,0.0510063,85876.0,85872.0,0.16566849]
[1741405142149,0.0510063,85876.0,85872.0,0.10758636]
[1741405142354,0.1096,85875.0,85872.0,0.10758636]
[1741405143050,0.1096,85875.0,85873.0,0.01398433]
[1741405143551,0.1164822,85874.0,85873.0,0.01398433]
[1741405144846,0.1079,85874.0,85873.0,0.01398433]
[1741405145046,0.1079,85874.0,85872.0,0.01547069]
[1741405145345,0.1032,85873.0,85868.0,0.1024]
[1741405145754,0.1122,85872.0,85868.0,0.1024]
[1741405146157,0.1032,85871.0,85868.0,0.1024]
[1741405146540,0.1122,85870.0,85868.0,0.1024]
[1741405146746,0.1122,85870.0,85868.0,0.4632]
[1741405146951,0.1032,85869.0,85868.0,0.4632]
[1741405147345,0.1032,85869.0,85868.0,0.47427217]
[1741405147949,0.1032,85869.0,85868.0,0.59076257]
[1741405148141,0.1032,85869.0,85868.0,0.53268044]
[1741405148346,0.1032,85869.0,85868.0,0.53293377]
[1741405148540,0.1032,85869.0,85868.0,0.3721255]
[1741405149753,0.219689,85869.0,85868.0,0.0113255]
[1741405150657,0.1164917,85867.0,85866.0,0.00017467]
[1741405150959,0.1165026,85859.0,85858.0,0.73328]
[1741405151153,0.1165026,85859.0,85858.0,0.67519787]
[1741405152155,0.1018,85860.0,85858.0,0.67519787]
[1741405152554,0.03631344,85860.0,85858.0,0.67519787]
[1741405152951,0.116497,85864.0,85857.0,0.23168836]
[1741405153151,0.0582479,85864.0,85857.0,0.05693116]
[1741405153353,0.116502,85860.0,85853.0,0.058255]
[1741405153868,0.1165048,85858.0,85850.0,0.41923167]
[1741405154158,0.1056,85857.0,85850.0,0.36146493]
[1741405154860,0.1165134,85852.0,85850.0,0.36146493]
[1741405155052,0.2077,85851.0,85850.0,0.36146493]
[1741405156156,0.3173,85851.0,85850.0,0.46946493]
[1741405156355,0.4338134,85851.0,85850.0,0.46946493]
[1741405157055,0.3173,85851.0,85850.0,0.46946493]
[1741405157257,0.3173,85851.0,85850.0,0.4113828]
[1741405157962,0.1056,85851.0,85850.0,0.4113828]
[1741405159354,0.04011369,85851.0,85850.0,0.4113828]
[1741405159656,0.04011369,85851.0,85850.0,0.5278976]
[1741405159858,0.04011369,85851.0,85850.0,0.6385976]
[1741405160262,0.04011369,85851.0,85850.0,0.58051547]
[1741405161263,0.47350001,85864.0,85850.0,0.46400067]
[1741405161466,0.1078,85862.0,85860.0,0.1165011]
[1741405161655,0.1078,85862.0,85861.0,0.4468999]
[1741405162060,0.00017467,85865.0,85861.0,0.4468999]
[1741405162362,0.3608,85876.0,85870.0,0.1164871]
[1741405162558,0.1053,85875.0,85873.0,0.1164834]
[1741405162758,0.1053,85875.0,85874.0,0.2108]
[1741405162959,0.1053,85875.0,85874.0,0.1083]
[1741405163162,0.1053,85875.0,85874.0,0.05021787]
[1741405163366,0.2131,85875.0,85874.0,0.05021787]
[1741405165755,0.1053,85875.0,85874.0,0.22576767]
[1741405165960,0.1053,85875.0,85874.0,0.16683444]
[1741405166169,0.1053,85875.0,85874.0,0.21435231]
[1741405166366,0.1114,85882.0,85881.0,0.1164727]
[1741405166563,0.2171,85882.0,85880.0,0.116474]
[1741405166871,0.2171,85882.0,85881.0,0.2220727]
[1741405167366,0.2171,85882.0,85881.0,0.22221391]
[1741405167668,0.15163043,85882.0,85881.0,0.22221391]
[1741405167870,0.15163043,85882.0,85881.0,0.33431391]
[1741405169364,0.15163043,85882.0,85881.0,0.27623178]
[1741405171464,0.15163043,85882.0,85881.0,0.15975908]
[1741405171767,0.15163043,85882.0,85881.0,0.11224121]
[1741405171958,0.26810183,85882.0,85881.0,0.11224121]
[1741405172158,0.26810183,85882.0,85881.0,0.00014121]
[1741405172360,0.1164787,85877.0,85874.0,0.05850255]
[1741405172672,0.6837,85876.0,85873.0,0.00017467]
[1741405173264,0.3229,85876.0,85874.0,0.00014182]
[1741405174371,0.2126,85876.0,85875.0,0.1164809]
[1741405174673,0.2126,85876.0,85875.0,0.2244809]
[1741405174870,0.1029,85876.0,85875.0,0.3319809]
[1741405175175,0.02287946,85876.0,85875.0,0.3319809]
[1741405175474,0.02287946,85876.0,85875.0,0.27389877]
[1741405175671,0.02287946,85876.0,85875.0,0.37859877]
[1741405176371,0.3609161,85883.0,85875.0,0.3202]
[1741405176567,0.33803665,85883.0,85882.0,0.1164714]
[1741405177467,0.33803665,85883.0,85882.0,0.3308714]
[1741405178069,0.1085,85883.0,85882.0,0.3308714]
[1741405178466,0.1085,85883.0,85882.0,0.27278927]
[1741405179363,0.36140001,85906.0,85882.0,0.4078]
[1741405179567,0.10854,85894.0,85893.0,0.1164565]
[1741405180178,0.1085,85894.0,85893.0,0.1164565]
[1741405180565,0.03963888,85894.0,85893.0,0.1164565]
[1741405180768,4e-05,85897.0,85893.0,0.3273565]
[1741405181071,0.03458392,85900.0,85894.0,0.116455]
[1741405181375,0.03458392,85900.0,85894.0,0.05837237]
[1741405181770,0.03458392,85900.0,85895.0,0.116453]
[1741405181976,0.03458392,85900.0,85894.0,0.05837237]
[1741405182476,0.03458392,85900.0,85895.0,0.1164529]
[1741405182681,0.03458392,85900.0,85894.0,0.05837237]
[1741405182682,0.03458392,85900.0,85894.0,0.17482657]
[1741405182975,0.03458392,85900.0,85894.0,0.05837237]
[1741405183177,4e-05,85921.0,85909.0,0.1164348]
[1741405183373,4e-05,85921.0,85914.0,0.116428]
[1741405183575,4e-05,85921.0,85911.0,0.1164316]
[1741405183874,0.1164175,85922.0,85913.0,0.1029]
[1741405184076,0.0582096,85921.0,85913.0,0.1029]
[1741405184275,0.3608,85923.0,85913.0,0.16013492]
[1741405184276,0.0582086,85922.0,85913.0,0.16013492]
[1741405184478,0.0582086,85922.0,85913.0,0.10205279]
[1741405184679,0.1164204,85920.0,85913.0,0.10205279]
[1741405185070,0.1055,85919.0,85913.0,0.10205279]
[1741405187474,0.1055,85919.0,85915.0,0.05834427]
[1741405187674,0.1055,85919.0,85916.0,0.2174]
[1741405188272,0.1025,85918.0,85916.0,0.2174]
[1741405188880,0.1104,85917.0,85916.0,0.2174]
[1741405189473,0.1104,85917.0,85916.0,0.1074]
[1741405189680,0.2268239,85917.0,85916.0,0.1074]
[1741405190075,0.3608,85923.0,85922.0,0.1164172]
[1741405190276,0.4697,85923.0,85922.0,0.1164172]
[1741405190481,0.4697,85923.0,85916.0,0.04931787]
[1741405190874,0.1164193,85921.0,85916.0,0.04931787]
[1741405191079,0.0582106,85919.0,85916.0,0.04931787]
[1741405191274,0.2149,85918.0,85916.0,0.04931787]
[1741405192370,0.14945758,85918.0,85916.0,0.04931787]
[1741405193477,0.14945758,85918.0,85912.0,0.13972101]
[1741405193674,0.3608,85914.0,85912.0,0.19856464]
[1741405193982,0.3608,85923.0,85919.0,0.1164207]
[1741405194183,0.1019,85922.0,85920.0,0.116419]
[1741405194384,0.1019,85922.0,85920.0,0.1042]
[1741405195585,0.1094,85921.0,85920.0,0.2206199]
[1741405196284,0.1094,85921.0,85911.0,0.25699902]
[1741405196480,0.1019,85920.0,85913.0,0.1042]
[1741405196681,0.1019,85920.0,85911.0,0.14056822]
[1741405196876,0.3608,85916.0,85911.0,0.19824988]
[1741405197078,0.3244274,85915.0,85911.0,0.19824988]
[1741405198988,0.208,85915.0,85911.0,0.05768166]
[1741405199287,0.1164375,85907.0,85906.0,0.73364]
[1741405199480,0.1164375,85907.0,85906.0,0.73292]
[1741405199684,0.1164429,85903.0,85902.0,0.05747225]
[1741405199885,0.1164443,85902.0,85893.0,0.00873887]
[1741405200190,0.2222443,85902.0,85893.0,0.00873887]
[1741405200487,0.5830443,85902.0,85893.0,0.00873887]
[1741405200882,0.1164524,85896.0,85893.0,0.00873887]
[1741405201187,0.4772524,85896.0,85893.0,0.00873887]
[1741405201787,0.6867524,85896.0,85893.0,0.00873887]
[1741405202584,0.0582307,85890.0,85873.0,0.30289254]
[1741405202784,0.1164822,85874.0,85873.0,0.00860888]
[1741405202992,0.1164841,85873.0,85869.0,0.1164881]
[1741405203183,0.2206841,85873.0,85870.0,0.2283876]
[1741405203379,0.1042,85873.0,85872.0,0.116485]
[1741405203579,0.3608,85882.0,85872.0,0.00013275]
[1741405203790,4e-05,85877.0,85876.0,0.1164795]
[1741405204189,4e-05,85877.0,85875.0,0.1164797]
[1741405204386,4e-05,85877.0,85876.0,0.1164795]
[1741405204585,0.10437467,85881.0,85874.0,0.3608]
[1741405204986,4e-05,85878.0,85875.0,0.1164803]
[1741405205688,4e-05,85878.0,85874.0,0.477282]
[1741405206082,0.04241463,85880.0,85874.0,0.477282]
[1741405206499,0.1032,85879.0,85874.0,0.477282]
[1741405206689,0.00017467,85881.0,85874.0,0.3608]
[1741405206894,0.00017467,85881.0,85878.0,0.1164763]
[1741405207402,0.00017467,85881.0,85880.0,0.1164741]
[1741405207598,0.11664767,85881.0,85874.0,0.3608]
[1741405207892,0.00017467,85881.0,85874.0,0.3608]
[1741405208691,0.00017467,85881.0,85874.0,0.30271787]
[1741405209193,0.00017467,85881.0,85875.0,0.1164808]
[1741405209888,0.00017467,85881.0,85874.0,0.30271787]
[1741405209889,0.00017467,85881.0,85877.0,0.1164774]
[1741405210398,0.00017467,85881.0,85875.0,0.1164807]
[1741405210594,0.00017467,85881.0,85873.0,0.4634]
[1741405210802,0.00017467,85881.0,85873.0,0.5798834]
[1741405211492,0.00017467,85881.0,85874.0,0.1164816]
[1741405211799,0.00017467,85881.0,85876.0,0.05839677]
[1741405212001,0.00017467,85881.0,85877.0,0.1164773]
[1741405213101,0.00017467,85881.0,85880.0,0.1164741]
[1741405214301,0.00017467,85881.0,85880.0,0.1948741]
[1741405214895,0.00017467,85881.0,85880.0,0.13679197]
[1741405215403,0.00017467,85881.0,85880.0,0.49759197]
[1741405217595,0.00017467,85881.0,85880.0,0.13679197]
[1741405217791,0.00017467,85881.0,85880.0,0.0784]
[1741405217994,0.00017467,85881.0,85880.0,0.5556741]
[1741405219202,0.00017467,85881.0,85880.0,0.1948741]
[1741405220901,0.00017467,85881.0,85880.0,0.13679197]
[1741405221406,4e-05,85890.0,85886.0,0.1164659]
[1741405221703,0.10574,85890.0,85887.0,0.1105]
[1741405222093,0.1052,85889.0,85887.0,0.1105]
[1741405222494,0.1057,85888.0,85887.0,0.1105]
[1741405222904,0.2174,85888.0,85887.0,0.1105]
[1741405223904,0.2174,85888.0,85887.0,0.05241787]
[1741405224200,0.1057,85888.0,85887.0,0.05241787]
[1741405224391,0.1057,85888.0,85887.0,0.16888247]
[1741405224591,0.1057,85888.0,85887.0,0.05241787]
[1741405225203,0.1057,85888.0,85887.0,0.16001787]
[1741405226099,0.1057,85888.0,85887.0,0.27648247]
[1741405226991,0.1057,85888.0,85887.0,0.21840034]
[1741405228402,4e-05,85890.0,85887.0,0.10193574]
[1741405228595,0.00017467,85897.0,85887.0,0.10193574]
[1741405228596,0.0974939,85895.0,85894.0,0.1164551]
[1741405228793,0.00017467,85897.0,85896.0,0.1164524]
[1741405229412,0.00017467,85897.0,85896.0,0.2287524]
[1741405229903,0.02398255,85902.0,85897.0,0.1164498]
[1741405230104,0.1064,85901.0,85899.0,0.1164483]
[1741405230305,0.1064,85901.0,85900.0,0.116447]
[1741405231310,0.1097,85906.0,85902.0,0.1164437]
[1741405231508,4e-05,85914.0,85903.0,0.10689328]
[1741405231711,0.1049,85912.0,85907.0,0.1164366]
[1741405231905,0.1049,85912.0,85908.0,0.2171]
[1741405233003,0.1049,85912.0,85908.0,0.15901787]
[1741405233203,0.1094,85911.0,85908.0,0.15901787]
[1741405234208,0.1094,85911.0,85908.0,0.04871787]
[1741405234407,0.1064,85910.0,85908.0,0.04871787]
[1741405234809,0.1094,85909.0,85908.0,0.04871787]
[1741405235807,0.2158,85909.0,85908.0,0.04871787]
[1741405236007,0.2158,85909.0,85904.0,0.09553574]
[1741405239010,0.2158,85909.0,85904.0,0.03745361]
[1741405239202,0.25224717,85909.0,85905.0,0.1032]
[1741405239804,0.1064,85909.0,85908.0,0.1164361]
[1741405240008,0.1064,85909.0,85906.0,0.18196]
[1741405240219,0.1064,85909.0,85908.0,0.1032]
[1741405241413,0.04095774,85909.0,85908.0,0.1032]
[1741405242210,0.04095774,85909.0,85908.0,0.04511787]
[1741405242918,0.04095774,85909.0,85901.0,0.1164447]
[1741405242919,0.1164416,85904.0,85896.0,0.14056822]
[1741405243118,0.0582181,85908.0,85896.0,0.21892822]
[1741405243319,0.1079,85905.0,85898.0,0.1066]
[1741405243511,0.1085,85904.0,85898.0,0.1066]
[1741405243919,0.2249416,85904.0,85898.0,0.1066]
[1741405244420,0.3362416,85904.0,85898.0,0.1066]
[1741405244619,0.3362416,85904.0,85896.0,0.14056822]
[1741405244813,0.1164592,85891.0,85890.0,0.14056822]
[1741405245012,0.1164619,85889.0,85888.0,0.00017467]
[1741405245312,0.1164702,85883.0,85881.0,0.37360277]